Workbook

Sheet Preisliste
A2: Anzahl | B2: Bild | C2: Referenz ALT | D2: Katelogrie | E2: Referenz NEU | F2: Artikelnr. | G2: Bezeichnung | H2: Kommentar | I2: Abmessungen HxLxT | J2: Katalog- artikel | K2: Listenpreis Promerka 2018 | L2: Einkaufspreis FAGSI -25% 2019
A3: 0 | C3: RE-BA-017 | D3: 1-1 Klappbänke | G3: Klappebank sitzen – Vorstand Tanne Firnis | H3: Nicht im Sortiment | I3: 45 x 160 x 43cm | J3: Nicht im Soritment
A4: 0 | C4: RE-BA-018 | D4: 1-1 Klappbänke | G4: Klappebank sitzen – Vorstand Tanne Firnis | H4: Nicht im Sortiment | I4: 45 x 200 x 43cm | J4: Nicht im Soritment
C5: FTBSH168 | D5: 1-1 Klapptiische | E5: KIRA | F5: TA-PL-004 | G5: Klapptisch H Füsse hellgrau | I5: 74 x 160 x 80cm | J5: ja | K5: 163.55 | L5: =Tableau1[[#This Row],[Listenpreis Promerka 2018]]*0.75 -> 122.6625
D6: 1-1 Klapptiische | E6: KAROLINA | F6: TA-PL-005 | G6: Klapptisch T Füsse hellgrau | I6: 74 x 160 x 80cm | J6: ja | K6: 163.55 | L6: =Tableau1[[#This Row],[Listenpreis Promerka 2018]]*0.75 -> 122.6625
A7: 0 | C7: BU-TP-004 | D7: 1-1 Klapptische | G7: Klapptisch – Vorstand Tanne Firnis | H7: Nicht im Sortiment | I7: 74 x 160 x 70cm | J7: Nicht im Soritment
A8: 0 | C8: BU-TP-005 | D8: 1-1 Klapptische | G8: Klapptisch – Vorstand Tanne Firnis | H8: Nicht im Sortiment | I8: 74 x 200 x 70cm | J8: Nicht im Soritment
A9: 0 | C9: MUNICH | D9: 1-1 Klapptische | E9: MUNICH | F9: 78707 | G9: SET : 1 Tisch und 2 Bänke Holz | I9: 74 x 220 x 80cm | J9: ja | K9: 164.65 | L9: =Tableau1[[#This Row],[Listenpreis Promerka 2018]]*0.75 -> 123.4875
A10: 0 | C10: MPGS2 | D10: 1-1 Rollcontainer | E10: TYRION-2 | F10: 5410210 | G10: Rollcontainer 2 Schubladen - graue Türen | I10: 57 x 46 x 60cm | J10: nein | K10: 155 | L10: =Tableau1[[#This Row],[Listenpreis Promerka 2018]]*0.75 -> 116.25
A11: 0 | C11: TYRION | D11: 1-1 Rollcontainer | E11: TYRION | F11: 5410110 | G11: Rollcontainer 3 Schubladen - graue Türen | I11: 57 x 46 x 60cm | J11: ja | K11: 155 | L11: =Tableau1[[#This Row],[Listenpreis Promerka 2018]]*0.75 -> 116.25
A12: 0 | C12: VENISE | D12: 1-1 Tische | E12: VENISE | F12: VENISE | G12: Cafeteria Tisch Aluminium | I12: 110 x Ø60cm | J12: ja | K12: 83.4 | L12: =Tableau1[[#This Row],[Listenpreis Promerka 2018]]*0.75 -> 62.55
A13: 0 | C13: MTBR108 | D13: 1-1 Tische | G13: Tisch MFC hellgrau, 4 Metall Füße | H13: Auf Anfrage erhältlich | I13: 75 x 100 x 80cm | J13: Auf Anfrage
A14: 0 | C14: ELENA120 | D14: 1-1 Tische | E14: ELENA120 | F14: 5118121 | G14: Tisch MFC hellgrau, 4 Metall Füße | I14: 75 x 120 x 80cm | J14: ja | K14: 91.5 | L14: =Tableau1[[#This Row],[Listenpreis Promerka 2018]]*0.75 -> 68.625
A15: 0 | C15: MTBR148 | D15: 1-1 Tische | E15: ELENA140 | F15: 5118140 | G15: Tisch MFC hellgrau, 4 Metall Füße | I15: 75 x 140 x 80cm | J15: ja | K15: 108.1 | L15: =Tableau1[[#This Row],[Listenpreis Promerka 2018]]*0.75 -> 81.075
A16: 0 | C16: ELENA160 | D16: 1-1 Tische | E16: ELENA160 | F16: 5118160 | G16: Tisch MFC hellgrau, 4 Metall Füße | I16: 75 x 160 x 80cm | J16: ja | K16: 118.25 | L16: =Tableau1[[#This Row],[Listenpreis Promerka 2018]]*0.75 -> 88.6875
A17: 0 | C17: MTBR168 | D17: 1-1 Tische | E17: ELENA160 | F17: 5118160 | G17: Tisch MFC hellgrau, 4 Metall Füße | I17: 75 x 160 x 80cm | J17: ja | K17: 118.25 | L17: =Tableau1[[#This Row],[Listenpreis Promerka 2018]]*0.75 -> 88.6875
A18: 0 | C18: MTBR188 | D18: 1-1 Tische | E18: ELENA180 | F18: 5118180 | G18: Tisch MFC hellgrau, 4 Metall Füße | I18: 75 x 180 x 80cm | J18: ja | K18: 132.3 | L18: =Tableau1[[#This Row],[Listenpreis Promerka 2018]]*0.75 -> 99.225
A19: 0 | C19: ELENA200 | D19: 1-1 Tische | E19: ELENA200 | F19: 5118200 | G19: Tisch MFC hellgrau, 4 Metall Füße | I19: 75 x 200 x 80cm | J19: ja | K19: 143.65 | L19: =Tableau1[[#This Row],[Listenpreis Promerka 2018]]*0.75 -> 107.7375
A20: 0 | C20: MTBR210 | D20: 1-1 Tische | E20: ELENA200/1 | F20: 5118201 | G20: Tisch MFC hellgrau, 4 Metall Füße | I20: 75 x 200 x 100cm | J20: ja | K20: 164.15 | L20: =Tableau1[[#This Row],[Listenpreis Promerka 2018]]*0.75 -> 123.1125
A21: 0 | D21: 1-1 Tische | E21: ELENA080 | F21: 5118080 | G21: Tisch MFC hellgrau, 4 Metall Füße | I21: 75 x 80 x 80cm | J21: nein | K21: 82.1 | L21: =Tableau1[[#This Row],[Listenpreis Promerka 2018]]*0.75 -> 61.575
A22: 0 | C22: FRANKY | D22: 1-3 Schränke Metall | E22: FRANKY | F22: 6110140 | G22: Universalschrank Metall ohne Türen | I22: 195 x 92 x 42cm | J22: ja | K22: 266.55 | L22: =Tableau1[[#This Row],[Listenpreis Promerka 2018]]*0.75 -> 199.9125
A23: 0 | C23: KLEINY | D23: 1-3 Schränke Metall | E23: KLEINY | F23: 6110141 | G23: Universalschrank Metall ohne Türen | I23: 180 x 80 x 38cm | J23: ja | K23: 223.85 | L23: =Tableau1[[#This Row],[Listenpreis Promerka 2018]]*0.75 -> 167.8875
D24: 1-3 Schränke Metall | F24: 6110138 | G24: Universalschrank Metall ohne Türen | I24: 100 x 80 x 38cm | J24: nein | K24: 192.5 | L24: =Tableau1[[#This Row],[Listenpreis Promerka 2018]]*0.75 -> 144.375
A25: 0 | C25: BKC1233 | D25: 1-3 Schränke Metall | G25: Universalschrank Metall ohne Türen | H25: Nicht im Sortiment | I25: 120 x 100 x 33cm | J25: Nicht im Soritment
A26: 0 | C26: FLC10 | D26: 1-3 Schränke Metall Flügeltüren | E26: MICRO | F26: 6110160 | G26: Flügeltürenschrank Metall hellgrau, 2 Regale | I26: 100 x 80 x 38cm | J26: ja | K26: 229.1 | L26: =Tableau1[[#This Row],[Listenpreis Promerka 2018]]*0.75 -> 171.825
A27: 0 | C27: FLC12 | D27: 1-3 Schränke Metall Flügeltüren | E27: FRANCIS | F27: 6110150 | G27: Flügeltürenschrank Metall hellgrau, 2 Regale | I27: 120 x 92 x 42cm | J27: nein | K27: 241.2 | L27: =Tableau1[[#This Row],[Listenpreis Promerka 2018]]*0.75 -> 180.9
A28: 0 | C28: FLC19 | D28: 1-3 Schränke Metall Flügeltüren | E28: FRANK | F28: 6110110 | G28: Flügeltürenschrank Metall hellgrau, 4 Regale, 5 Ordnerhöhen | I28: 195 x 92 x 42cm | J28: ja | K28: 295.95 | L28: =Tableau1[[#This Row],[Listenpreis Promerka 2018]]*0.75 -> 221.9625
A29: 0 | C29: KLEIN | D29: 1-3 Schränke Metall Flügeltüren | E29: KLEIN | F29: 6110120 | G29: Flügeltürenschrank Metall hellgrau, 4 Regale, 5 Ordnerhöhen | I29: 180 x 80 x 38cm | J29: ja | K29: 244 | L29: =Tableau1[[#This Row],[Listenpreis Promerka 2018]]*0.75 -> 183
A30: 0 | C30: FLC192 | D30: 1-3 Schränke Metall Flügeltüren | E30: FRANK120 | F30: 6110100 | G30: Flügeltürenschrank Metall hellgrau, 4 Regale, 5 Ordnerhöhen | I30: 195 x 120 x 42cm | J30: nein | K30: 343.2 | L30: =Tableau1[[#This Row],[Listenpreis Promerka 2018]]*0.75 -> 257.4
A31: 0 | C31: FRANK | D31: 1-3 Schränke Metall Flügeltüren | E31: FRANK PLAT | F31: 6010110 | G31: Flügeltürenschrank Metall hellgrau, 4 Regale, 5 Ordnerhöhen, im KIT (zerlegt) | I31: 195 x 92 x 42cm | J31: ja | K31: 221.3 | L31: =Tableau1[[#This Row],[Listenpreis Promerka 2018]]*0.75 -> 165.975
A32: 0 | C32: UNC18 | D32: 1-3 Schränke Metall Flügeltüren | G32: Schrank Metall hellgrau, eine Seite mit 3 Regale und eine Seite Garderobe | H32: Auf Anfrage erhältlich | I32: 180 x 80 x 38cm | J32: Auf Anfrage
A33: 0 | C33: UNC19 | D33: 1-3 Schränke Metall Flügeltüren | E33: ULYS | F33: 6015100 | G33: Schrank Metall hellgrau, eine Seite mit 3 Regale und eine Seite Garderobe | I33: 195 x 92 x 42cm | J33: ja | K33: 317.95 | L33: =Tableau1[[#This Row],[Listenpreis Promerka 2018]]*0.75 -> 238.4625
A34: 0 | C34: FSC1995 | D34: 1-3 Schränke Metall Flügeltüren | G34: Sicherheit Schrank 4 Regale – Graue Türen | H34: Nicht im Sortiment | I34: 195 x 95 x 55cm | J34: Nicht im Soritment
D35: 1-3 Schränke Metall Plan | E35: MARKUS | F35: 10530340 | G35: Planschrank Metall, 18 kleine Fächer, 2 grosse Fächer | I35: 195 x 92 x 42cm | J35: ja | K35: 402 | L35: =Tableau1[[#This Row],[Listenpreis Promerka 2018]]*0.75 -> 301.5
A36: 0 | C36: FRED | D36: 1-3 Schränke Metall Plan | E36: FRED | F36: 6110145 | G36: Planschrank Metall, 32 kleine Fächer, 4 grosse Fächer | I36: 195 x 100 x 42cm | J36: ja | K36: 445.25 | L36: =Tableau1[[#This Row],[Listenpreis Promerka 2018]]*0.75 -> 333.9375
D37: 1-3 Schränke Metall Rollladen | E37: SONIA | F37: 6111150 | G37: Rollladenschrank Metall hellgrau, 1 Regale, 12 Ordnerhöhen | I37: 75 x 120 x 45cm | J37: ja | K37: 267.75 | L37: =Tableau1[[#This Row],[Listenpreis Promerka 2018]]*0.75 -> 200.8125
A38: 0 | C38: SDC1312 | D38: 1-3 Schränke Metall Rollladen | E38: ROLITO | F38: 6111120 | G38: Rollladenschrank Metall hellgrau, 2 Regale, 3 Ordnerhöhen | I38: 135 x 120 x 45cm | J38: ja | K38: 372.4 | L38: =Tableau1[[#This Row],[Listenpreis Promerka 2018]]*0.75 -> 279.3
D39: 1-3 Schränke Metall Rollladen | F39: 6111130 | G39: Rollladenschrank Metall hellgrau, 2 Regale, 3 Ordnerhöhen | I39: 105 x 120 x 45cm | J39: ja | K39: 300 | L39: =Tableau1[[#This Row],[Listenpreis Promerka 2018]]*0.75 -> 225
A40: 0 | C40: SDC101040 | D40: 1-3 Schränke Metall Rollladen | G40: Rollladenschrank Metall hellgrau, 2 Regale, 3 Ordnerhöhen | H40: Nicht im Sortiment | I40: 105 x 100 x 40cm | J40: Nicht im Soritment
A41: 0 | C41: SDC1912 | D41: 1-3 Schränke Metall Rollladen | E41: ROLO | F41: 6111100 | G41: Rollladenschrank Metall hellgrau, 4 Regale, 5 Ordnerhöhen | I41: 195 x 120 x 45cm | J41: ja | K41: 523.1 | L41: =Tableau1[[#This Row],[Listenpreis Promerka 2018]]*0.75 -> 392.325
A42: 0 | C42: SDC181040 | D42: 1-3 Schränke Metall Rollladen | G42: Rollladenschrank Metall hellgrau, 4 Regale, 5 Ordnerhöhen | H42: Nicht im Sortiment | I42: 180 x 100 x 40cm | J42: Nicht im Soritment
A43: 0 | C43: SLC0712 | D43: 1-3 Schränke Metall Schiebetüren | G43: Schiebetürenschrank Metall hellgrau | H43: Nicht im Sortiment | I43: 75 x 120 x 45cm | J43: Nicht im Soritment
A44: 0 | C44: FGC2 | D44: 1-3-1 Schränke | G44: Hängeregistraturschrank mit 2 Schubladen – Graue Türen | H44: Nicht im Sortiment | I44: 70 x 43 x 62 cm | J44: Nicht im Soritment
A45: 0 | C45: FGC3 | D45: 1-3-1 Schränke | G45: Hängeregistraturschrank mit 3 Schubladen – Graue Türen | H45: Nicht im Sortiment | I45: 101 x 43 x 62cm | J45: Nicht im Soritment
A46: 0 | C46: FGC4 | D46: 1-3-1 Schränke | G46: Hängeregistraturschrank mit 4 Schubladen – Graue Türen | H46: Nicht im Sortiment | I46: 132 x 43 x 62cm | J46: Nicht im Soritment
A47: 0 | C47: FGCD2 | D47: 1-3-1 Schränke | G47: Schrank mit 2 Schubladen – Graue Türen | H47: Nicht im Sortiment | I47: 70 x 82 x 62cm | J47: Nicht im Soritment
A48: 0 | C48: FGCD3 | D48: 1-3-1 Schränke | G48: Schrank mit 3 Schubladen – Graue Türen | H48: Nicht im Sortiment | I48: 101 x 82 x 62cm | J48: Nicht im Soritment
A49: 0 | C49: AC-P-005 | D49: 1-4 Garderobe | G49: Kleiderhaken 4 Köpfe - Grau | H49: Nicht im Sortiment | I49: 7 x 61cm | J49: Nicht im Soritment
A50: 0 | C50: AC-P-006 | D50: 1-4 Garderobe | G50: Kleiderhaken 5 Köpfe - Grau | H50: Nicht im Sortiment | I50: 7 x 78.5cm | J50: Nicht im Soritment
A51: 0 | C51: EIFFEL | D51: 1-4 Garderobe | E51: EIFFEL | F51: EIFFEL | G51: Kleiderständer Regenschirmständer -Schwarz | I51: 168 x Ø42cm | J51: ja | K51: 57.4 | L51: =Tableau1[[#This Row],[Listenpreis Promerka 2018]]*0.75 -> 43.05
A52: 0 | C52: STH10196 | D52: 1-4 Garderobe | G52: Leiste mit 10 Kleiderhaken - Holz | H52: Auf Anfrage erhältlich | I52: 11 x 196 x 45cm | J52: Auf Anfrage
A53: 0 | C53: AC-P-017 | D53: 1-4 Garderobe | G53: Metall Wand Tragmantel mit Tablett 5 Hacken – Grau | H53: Nicht im Sortiment | I53: 15 x 71cm | J53: Nicht im Soritment
A54: 0 | C54: HNG6 | D54: 1-4 Garderobe | E54: HNG6 | F54: 15310601032 | G54: Wandgarderobe Metall mit Hutablage 6 Hacken – schwarz | I54: 18.3 x 84 x 22cm | J54: ja | K54: 55.55 | L54: =Tableau1[[#This Row],[Listenpreis Promerka 2018]]*0.75 -> 41.6625
A55: 0 | D55: 1-4 Garderobenbänke | G55: Garderobenbank - einziger aus Holz - 6 Haken | H55: Nicht im Sortiment | I55: 170 x 150 x 50 cm | J55: Nicht im Soritment
A56: 0 | C56: SRB160 | D56: 1-4 Garderobenbänke | G56: Sitzbank mit Garderoben einseitig – Holzlatte Lack | H56: Auf Anfrage erhältlich | I56: 40 x 160 x 40cm | J56: Auf Anfrage
A57: 0 | C57: SRB200 | D57: 1-4 Garderobenbänke | G57: Sitzbank mit Garderoben einseitig – Holzlatte Lack | H57: Auf Anfrage erhältlich | I57: 40 x 200 x 40cm | J57: Auf Anfrage
A58: 0 | C58: SBU120 | D58: 1-4 Garderobenbänke | G58: Sitzbank mit Garderoben einseitig – Holzlatte Lack | H58: Nicht im Sortiment | I58: 189 x 120 x 40cm | J58: Nicht im Soritment
A59: 0 | C59: SBU200 | D59: 1-4 Garderobenbänke | G59: Sitzbank mit Garderoben einseitig – Holzlatte Lack | H59: Nicht im Sortiment | I59: 189 x 200 x 40cm | J59: Nicht im Soritment
A60: 0 | C60: DBU200 | D60: 1-4 Garderobenbänke | G60: Sitzbank mit Garderobenleisten doppelseitig – Holzlatte Lack | H60: Nicht im Sortiment | I60: 189 x 200 x 80cm | J60: Nicht im Soritment
A61: 0 | C61: STB120 | D61: 1-4 Garderobenbänke | G61: Stapelbar Bank 3 Latten – Braun Füsse | H61: Nicht im Sortiment | I61: 45 x 120 x 43cm | J61: Nicht im Soritment
A62: 0 | C62: STB160 | D62: 1-4 Garderobenbänke | G62: Stapelbar Bank 3 Latten – Braun Füsse | H62: Nicht im Sortiment | I62: 45 x 160 x 43cm | J62: Nicht im Soritment
A63: 0 | C63: STB200 | D63: 1-4 Garderobenbänke | G63: Stapelbar Bank 3 Latten – Braun Füsse | H63: Nicht im Sortiment | I63: 45 x 200 x 43cm | J63: Nicht im Soritment
A64: 0 | C64: WRB60 | D64: 1-4 Garderobenschränke | E64: SOCLE60 | F64: 6017102 | G64: Sitzbank für Garderobenschrank – 3 Lackholzlatten | I64: 40 x 60 x 80cm | J64: ja | K64: 70.5 | L64: =Tableau1[[#This Row],[Listenpreis Promerka 2018]]*0.75 -> 52.875
A65: 0 | C65: WRB80 | D65: 1-4 Garderobenschränke | E65: SOCLE80 | F65: 6017103 | G65: Sitzbank für Garderobenschrank – 3 Lackholzlatten | I65: 40 x 80 x 80cm | J65: ja | K65: 81 | L65: =Tableau1[[#This Row],[Listenpreis Promerka 2018]]*0.75 -> 60.75
A66: 0 | C66: CARLOS | D66: 1-4 Garderobenschränke | E66: CARLOS | F66: 6010120 | G66: Spind mit 2 Türen auf Sockel Drehriegel – Blaue Tür (Auf Anfrage in Grau erhältlich) | I66: 180 x 60 x 50cm | J66: ja | K66: 208.85 | L66: =Tableau1[[#This Row],[Listenpreis Promerka 2018]]*0.75 -> 156.6375
A67: 0 | C67: WRD21880 | D67: 1-4 Garderobenschränke | E67: RUBEN | F67: 6011120 | G67: Spind mit 2 Türen und Separation auf Sockel Drehriegel – Blaue Tür (auf Anfrage in Grau erhältlich) | I67: 180 x 80 x50cm | J67: ja | K67: 281.9 | L67: =Tableau1[[#This Row],[Listenpreis Promerka 2018]]*0.75 -> 211.425
A68: 0 | C68: WRC31890 | D68: 1-4 Garderobenschränke | E68: JOSE | F68: 6010130 | G68: Spind mit 3 Türen auf Sockel Drehriegel – Blaue Tür (auf Anfrage in Grau erhältlich) | I68: 180 x 90 x 50cm | J68: ja | K68: 291 | L68: =Tableau1[[#This Row],[Listenpreis Promerka 2018]]*0.75 -> 218.25
A69: 0 | C69: WRC418060 | D69: 1-4 Garderobenschränke | E69: ROBERTO | F69: 6012340 | G69: Spind mit 4 Türen KLEIN auf Sockel Drehriegel – Blaue Tür (Auf Anfrage in Grau erhältlich) | I69: 180 x 90 x 50cm | J69: ja | K69: 232.35 | L69: =Tableau1[[#This Row],[Listenpreis Promerka 2018]]*0.75 -> 174.2625
A70: 0 | C70: MBB1 | D70: 1-6 Betten & Zubehör | E70: ROLAND1 | F70: 6016122 | G70: Bett: 1 Person | I70: 102 x 200 x 98cm | J70: ja | K70: 168.8 | L70: =Tableau1[[#This Row],[Listenpreis Promerka 2018]]*0.75 -> 126.6
A71: 0 | C71: MBB2 | D71: 1-6 Betten & Zubehör | E71: ROLAND2 | F71: 6016111 | G71: Etagenbett: 2 Personen | I71: 160 x 200 x 98cm | J71: ja | K71: 262.2 | L71: =Tableau1[[#This Row],[Listenpreis Promerka 2018]]*0.75 -> 196.65
A72: 0 | C72: PSR532 | D72: 2-1 Rollcontainer | E72: CHICO | F72: PSR532 | G72: Rollcontainer 3 Schubladen – weiss | I72: 51 x 41.5x 50cm | J72: ja | K72: 132 | L72: =Tableau1[[#This Row],[Listenpreis Promerka 2018]]*0.75 -> 99
A73: 0 | C73: PSS642 | D73: 2-1 Rollcontainer | G73: Standcontainer 4 Schubladen weiss, graue Griffe | H73: Auf Anfrage erhältlich | I73: 72 x 60 x 43cm | J73: Auf Anfrage
A74: 0 | C74: CZM202 | D74: 2-1 Tische | G74: Besprechungstisch – Silber Füsse | H74: Auf Anfrage erhältlich | I74: 72 x 200 x 100cm | J74: Auf Anfrage
A75: 0 | C75: DBA161 | D75: 2-1 Tische | G75: Bürotisch runde Füße – weisse Platte, silberne Füße | H75: Nicht im Sortiment | I75: 72 x 160 x 80cm | J75: Nicht im Soritment
A76: 0 | C76: DBL161 | D76: 2-1 Tische | G76: Bürotisch runde Füße Ecke links – silberne Füße | H76: Nicht im Sortiment | I76: 72 x 160 x 120cm | J76: Nicht im Soritment
A77: 0 | C77: DBD061 | D77: 2-1 Tische | G77: Bürotisch Zusatz – silberne Füße | H77: Nicht im Sortiment | I77: 72 x 60 x 60cm | J77: Nicht im Soritment
A78: 0 | C78: CZM100 | D78: 2-1 Tische | G78: Circular Besprechungstisch – weisse Platte, silberne Füsse | H78: Auf Anfrage erhältlich | I78: 72 x Ø 100cm | J78: Auf Anfrage
A79: 0 | C79: MTBRCR80 | D79: 2-1 Tische | G79: Rundtisch – graue Füsse | H79: Nicht im Sortiment | I79: 75 x Ø 80cm | J79: Nicht im Soritment
A80: 0 | C80: E2C082 | D80: 2-3 Schränke Holz | G80: Flügeltürenschrank Holz | H80: Nicht im Sortiment | I80: 81 x 80 x 36cm | J80: Nicht im Soritment
A81: 0 | C81: E5C082 | D81: 2-3 Schränke Holz | G81: Flügeltürenschrank Holz | H81: Nicht im Sortiment | I81: 72 x 120 x 60cm | J81: Nicht im Soritment
A82: 0 | C82: PXL620 | D82: 2-3 Schränke Holz | G82: Schiebetürenschrank – weisse Türen weisser Korpus | H82: Nicht im Sortiment | I82: 186 x 80 x 36cm | J82: Nicht im Soritment
A83: 0 | C83: KAREN | D83: 3-1 Stühle | E83: KAREN | F83: CHR029005 | G83: Besucherstuhl Holz – Schwarze Füsse | I83: 82 x 34 x 47cm | J83: ja | K83: 23.75 | L83: =Tableau1[[#This Row],[Listenpreis Promerka 2018]]*0.75 -> 17.8125
A84: 0 | C84: CHR02 | D84: 3-1 Stühle | G84: Besucherstuhl Holz – Schwarze Füsse | H84: Nicht im Sortiment | I84: 81 x 52 x 43cm | J84: Nicht im Soritment
A85: 0 | C85: LISA | D85: 3-1 Stühle | E85: LISA | F85: ISO007 | G85: Besucherstuhl Kunststoff - Schwarze Füße | I85: 81 x 55 x 55cm | J85: ja | K85: 25 | L85: =Tableau1[[#This Row],[Listenpreis Promerka 2018]]*0.75 -> 18.75
A86: 0 | C86: ISIS | D86: 3-1 Stühle | E86: ISIS | F86: ISO001 | G86: Besucherstuhl Stoff – Schwarze Füsse | I86: 82 x 55 x 55cm | J86: ja | K86: 28 | L86: =Tableau1[[#This Row],[Listenpreis Promerka 2018]]*0.75 -> 21
A87: 0 | C87: ZURICH | D87: 3-1 Stühle | E87: ZURICH | F87: ZURICH | G87: Z Barhocker – Chrom Füße | I87: 85 x Ø37cm | J87: ja | K87: 55 | L87: =Tableau1[[#This Row],[Listenpreis Promerka 2018]]*0.75 -> 41.25
A88: 0 | C88: ANA | D88: 3-2 Stühle Büro | E88: ANA | F88: 100004 | G88: Bürodrehstuhl aus Leder, Schwingmechanismus, Farbe schwarz | I88: 103-114x58x61cm | J88: ja | K88: 123.3 | L88: =Tableau1[[#This Row],[Listenpreis Promerka 2018]]*0.75 -> 92.475
A89: 0 | C89: ANDREA | D89: 3-2 Stühle Büro | E89: ANDREA | F89: AEROL | G89: Bürodrehstuhl mit hoher Rückenlehnde, Rückenlehne aus Mesh, Farbe schwarz empfohlene Benützung: 4h/Tag | I89: 105-117x65x48cm | J89: ja | K89: 185.6 | L89: =Tableau1[[#This Row],[Listenpreis Promerka 2018]]*0.75 -> 139.2
A90: 0 | C90: ELODIE | D90: 3-2 Stühle Büro | E90: ELOISA | F90: 1850AR40D2 | G90: Bürodrehstuhl mit Lendenschutz, hohe Rückenlehnde aus schwarzer Mesh, einstellbar in Höhe, Sitz aus schwarzem Stoff, mulitfunktionale Armlehne, Unterstützung für Lende einstellbar in Höhe, synchronisierte Mechanik | I90: 108-116x49-56x45cm | J90: ja | K90: 378.9 | L90: =Tableau1[[#This Row],[Listenpreis Promerka 2018]]*0.75 -> 284.175
A91: 0 | C91: PAOLA | D91: 3-2 Stühle Büro | G91: Direktionsessel Kruste Leder – Schwarze Füsse | H91: Nicht im Sortiment | I91: 120 x 70 x 60cm | J91: Nicht im Soritment
A92: 0 | C92: SLC012 | D92: 3-2 Stühle Büro | G92: Direktionsessel mit Armlehnen – Silber Füsse | H92: Nicht im Sortiment | I92: 75 x 160 x 80cm | J92: Nicht im Soritment
D93: 3-2 Stühle Büro | E93: PAOLA | F93: SI-POLO-002 | G93: Drehstuhl schwarz gepolstert mit Armlehnen | I93: 95.5-114.5 x 65 x 65cm | J93: ja | K93: 85.25 | L93: =Tableau1[[#This Row],[Listenpreis Promerka 2018]]*0.75 -> 63.9375
A94: 0 | C94: SUC024 | D94: 3-2 Stühle Büro | G94: Ergonomischer Stuhl mit synchronmechanik, Armlehnen und Rückenlehne mit Netzbezug – Schwarze Füsse | H94: Auf Anfrage erhältlich | I94: 106.5 x 65 x 63.5cm | J94: Auf Anfrage
A95: 0 | C95: SIC220 | D95: 3-2 Stühle Büro | G95: Ergonomischer Stuhl mit synchronmechanik, Armlehnen und Rückenlehne mit Netzbezug Lendenunterstützung regulierbar | H95: Auf Anfrage erhältlich | I95: 113.5 x 70.5 x 77cm | J95: Auf Anfrage
A96: 0 | C96: FAVORIT | D96: 3-2 Stühle Büro | G96: Ergonomischer Stuhl synchronmechanik mit Armlehnen und Rücklehne – Schwarze Füsse | H96: Nicht im Sortiment | I96: 108.5 x 63.5 x 59cm | J96: Nicht im Soritment
A97: 0 | C97: HORSE | D97: 4-1 Bürobedarf | E97: HORSE | F97: 5341302 | G97: Flip-chart & Schreibtafel weiss | I97: 107.5 x 75cm | J97: ja | K97: 89.95 | L97: =Tableau1[[#This Row],[Listenpreis Promerka 2018]]*0.75 -> 67.4625
A98: 0 | C98: NET | D98: 4-1 Bürobedarf | E98: NET | F98: 3439879 | G98: Magnetischer Witheboard Wischer | J98: ja | K98: 11 | L98: =Tableau1[[#This Row],[Listenpreis Promerka 2018]]*0.75 -> 8.25
A99: 0 | C99: COULEURS | D99: 4-1 Bürobedarf | E99: COULEURS | F99: 1639327 | G99: Marker für Whiteboard 4x | J99: ja | K99: 3.4 | L99: =Tableau1[[#This Row],[Listenpreis Promerka 2018]]*0.75 -> 2.55
A100: 0 | C100: DUST | D100: 4-1 Bürobedarf | E100: DUST | F100: 452731 | G100: Papierkorb Kunststoff 18 Liter | J100: ja | K100: 7 | L100: =Tableau1[[#This Row],[Listenpreis Promerka 2018]]*0.75 -> 5.25
A101: 0 | C101: 85545 | D101: 4-1 Bürobedarf | G101: Stehleuchte mit Fuss 2 x 55 W oder 2 x 88 W | H101: Nicht im Sortiment | I101: 195 x 30cm | J101: Nicht im Soritment
A102: 0 | C102: CASPER | D102: 4-1 Bürobedarf | E102: CASPER | F102: 2655966 | G102: Whiteboard Aluminium - Weiss | I102: 120 x 90cm | J102: ja | K102: 39 | L102: =Tableau1[[#This Row],[Listenpreis Promerka 2018]]*0.75 -> 29.25
A103: 0 | C103: 2656411 | D103: 4-1 Bürobedarf | F103: 2656411 | G103: Whiteboard Aluminium - Weiss | I103: 180 x 120cm | J103: ja | K103: 170 | L103: =Tableau1[[#This Row],[Listenpreis Promerka 2018]]*0.75 -> 127.5
A104: 0 | C104: MIKAEL | D104: 5-2 Schränke Regale | E104: MIKAEL | F104: 5079256 | G104: Regale in KIT, 4 Regalle, 200 Kg pro Regal, Montage ohne Schraube | I104: 180 x 90 x 45cm | J104: ja | K104: 57 | L104: =Tableau1[[#This Row],[Listenpreis Promerka 2018]]*0.75 -> 42.75
A105: 0 | C105: ALASKA 014598 | D105: 6-1 Heizer | G105: Klimaanlage 2500 W 8500 BTU | H105: Nicht im Sortiment | I105: 95 x 52 x 40cm | J105: Nicht im Soritment
A106: 0 | C106: EL-CO-005 | D106: 6-1 Heizer | G106: Konvektor 1500 W | H106: Nicht im Sortiment | I106: 44 x 74 x 11cm | J106: Nicht im Soritment
A107: 0 | C107: GOBI | D107: 6-1 Heizer | G107: Konvektor 3 Gänge 750 W - 1250 W -2000 W | H107: Nicht im Sortiment | I107: 37 x 59cm | J107: Nicht im Soritment
A108: 0 | C108: EL-ROU-001 | D108: 6-1 Heizer | G108: Rollen in Option | H108: Nicht im Sortiment | J108: Nicht im Soritment
A109: 0 | C109: EL-CG-002 | D109: 7-0 Küche & Haushalt | G109: Geschirrwärmer 10-12 | H109: Nicht im Sortiment | I109: 38 x 56 x 45.5cm | J109: Nicht im Soritment
A110: 0 | C110: RE-KI-003 | D110: 7-0 Küche & Haushalt | G110: Kleinküche Metall, mit 2 Kochplatten, Kühlschrank 92 L, Warmwasserboiler 5L, Amaturen, Spüle Edelstahl, Regal | H110: Auf Anfrage erhältlich | I110: 86 x 120 x 60cm | J110: Auf Anfrage
A111: 0 | C111: RE-KI-020 | D111: 7-0 Küche & Haushalt | G111: Kochnische Holz | H111: Nicht im Sortiment | I111: 87 x 120 x 60cm | J111: Nicht im Soritment
A112: 0 | C112: HELSINKI 017315 | D112: 7-0 Küche & Haushalt | E112: HELSINI | F112: 20552 | G112: Kühlschrank 118 Liter weiss mit Gefrierfach von 14 Liter | I112: 85 x 55 x 58cm | J112: ja | K112: 259 | L112: =Tableau1[[#This Row],[Listenpreis Promerka 2018]]*0.75 -> 194.25
A113: 0 | C113: CANADA 011773 | D113: 7-0 Küche & Haushalt | E113: CANADA | F113: 11773 | G113: Kühlschrank 225 Liter weiss mit Gefrierfach von 15 Liter | I113: 142.5 x 55 x 56cm | J113: ja | K113: 429 | L113: =Tableau1[[#This Row],[Listenpreis Promerka 2018]]*0.75 -> 321.75
A114: 0 | C114: SIBIRIE 016066 | D114: 7-0 Küche & Haushalt | E114: SIBERIE | F114: 16066 | G114: Kühlschrank 335 Liter weiss ohne Gefrierfach | I114: 172.5 x 60 x 59cm | J114: ja | K114: 499 | L114: =Tableau1[[#This Row],[Listenpreis Promerka 2018]]*0.75 -> 374.25
A115: 0 | C115: VOSTOK 136987 | D115: 7-0 Küche & Haushalt | E115: VOSTOK | F115: 136987 | G115: Kühlschrank 92 Liter weiss ohne Gefrierfach | I115: 85 x 48 x 48cm | J115: ja | K115: 229 | L115: =Tableau1[[#This Row],[Listenpreis Promerka 2018]]*0.75 -> 171.75
A116: 0 | C116: SAHARA 0017503 | D116: 7-0 Küche & Haushalt | E116: SAHARA | F116: 19074 | G116: Mikrowelle 700 W weiss 20 Liter | I116: 26 x 44 x 34cm | J116: ja | K116: 78 | L116: =Tableau1[[#This Row],[Listenpreis Promerka 2018]]*0.75 -> 58.5
A117: 0 | C117: AC-LB-002 | D117: Sonstiges | F117: AC-LB-004 | G117: Stiefelputzer mit Wasseranschluss | I117: 87 x 26 x 55cm | J117: nein | K117: 371.75 | L117: =Tableau1[[#This Row],[Listenpreis Promerka 2018]]*0.75 -> 278.8125
A118: 1
